bitfinex/quotes_SOLUSD_20250814
["timestamp","ask_amount","ask_price","bid_price","bid_amount"]
[1755179525184,26.0,196.0,195.96,33.66]
[1755179525488,0.7,195.99,195.96,33.66]
[1755179525871,5.80128054,196.03,195.96,33.66]
[1755179526389,5.10152025,196.02,195.96,33.66]
[1755179526566,5.10152025,196.02,195.97,43.6]
[1755179526887,0.7,196.02,195.97,43.6]
[1755179527389,0.06,196.01,195.98,43.6]
[1755179528095,0.06,196.01,195.99,43.6]
[1755179528390,0.06,196.01,196.0,5.10204081]
[1755179528555,0.06,196.01,196.0,17.87153099]
[1755179528751,0.06,196.01,196.0,5.60204081]
[1755179528957,12.74550316,196.15,196.0,5.60204081]
[1755179528958,0.7,196.11,196.01,15.39]
[1755179529181,0.7,196.11,196.03,15.10621557]
[1755179529389,0.7,196.11,196.04,56.34949018]
[1755179529580,5.79841637,196.14,196.05,12.76949018]
[1755179529891,5.09841637,196.14,196.02,0.51015202]
[1755179530070,0.7,196.13,196.03,43.58]
[1755179530384,5.09891902,196.12,196.03,61.45059239]
[1755179531187,0.7,196.13,196.04,15.10621557]
[1755179531682,5.79787928,196.16,196.07,12.76949018]
[1755179531986,5.79787928,196.16,196.08,43.56]
[1755179532279,5.79787928,196.16,196.08,56.32949018]
[1755179532485,0.7,196.16,196.09,5.09969911]
[1755179532690,5.79798756,196.16,196.08,43.56]
[1755179532897,26.0,196.13,196.09,43.56]
[1755179533051,0.7,196.12,196.1,43.56]
[1755179533252,31.64591868,196.2,195.98,15.10621557]
[1755179533253,5.09762937,196.17,196.11,43.54]
[1755179533486,0.7,196.19,196.12,43.54]
[1755179533657,5.79734504,196.19,196.12,43.54]
[1755179534177,0.7,196.18,196.12,43.54]
[1755179534685,5.09761941,196.17,196.12,43.54]
[1755179534892,0.7,196.16,196.12,43.54]
[1755179535195,0.7,196.15,196.12,43.54]
[1755179535383,0.7,196.14,196.12,43.54]
[1755179535692,0.7,196.13,196.01,0.51017805]
[1755179535872,0.7,196.13,196.02,43.54]
[1755179536467,5.09891902,196.12,196.02,43.54]
[1755179536904,5.09891902,196.12,196.02,48.64140758]
[1755179537075,5.09891902,196.12,196.02,43.54]
[1755179537273,5.09891902,196.12,196.03,0.44]
[1755179537485,5.79870237,196.13,196.04,12.55047277]
[1755179537671,0.7,196.13,196.04,12.55047277]
[1755179538171,5.79880397,196.13,196.02,48.64148495]
[1755179538389,5.79880397,196.13,196.02,61.19195772]
[1755179538578,5.79880397,196.13,196.03,56.51047277]
[1755179538777,5.79880397,196.13,196.03,43.96]
[1755179539030,5.79880397,196.13,196.03,43.52]
[1755179539202,5.09880397,196.13,196.04,0.44]
[1755179539378,5.09880397,196.13,196.04,12.99047277]
[1755179539574,5.09880397,196.13,196.04,0.44]
[1755179539777,5.09880397,196.13,196.04,12.99047277]
[1755179540006,0.7,196.16,196.06,12.55047277]
[1755179540177,0.7,196.16,196.09,12.55047277]
[1755179540378,5.79712733,196.19,196.1,43.5]
[1755179540571,5.79712733,196.19,196.1,61.14979817]
[1755179540770,5.79712733,196.19,196.1,48.5993254]
[1755179541078,0.06,196.2,196.11,12.55047277]
[1755179541273,0.06,196.2,196.12,12.55047277]
[1755179541492,0.06,196.2,196.11,0.44]
[1755179541705,5.15693223,196.2,196.11,0.44]
[1755179541909,0.06,196.2,196.12,0.44]
[1755179542208,0.06,196.2,196.14,15.10621557]
[1755179542388,0.06,196.2,196.17,12.55047277]
[1755179542696,0.06,196.2,196.18,48.59735956]
[1755179542914,0.06,196.2,196.19,0.44]
[1755179543347,0.06,196.2,196.18,48.59735956]
[1755179543495,0.06,196.2,196.15,46.36471538]
[1755179543496,0.7,196.19,196.15,33.62]
[1755179543842,0.06,196.2,196.15,33.62]
[1755179544141,0.06,196.2,196.16,43.48]
[1755179544142,0.7,196.18,196.16,43.48]
[1755179544299,0.7,196.17,196.15,33.62]
[1755179544610,26.0,196.19,196.15,33.62]
[1755179545119,0.06,196.2,196.15,33.62]
[1755179545309,0.06,196.2,196.16,15.54621557]
[1755179545625,0.06,196.2,196.18,12.55047277]
[1755179545801,0.06,196.2,196.19,28.09668834]
[1755179546124,0.7,196.31,196.2,15.10621557]
[1755179546319,0.7,196.31,196.22,12.55047277]
[1755179546544,0.7,196.31,196.2,15.10621557]
[1755179546545,0.7,196.31,196.24,5.09580105]
[1755179546907,0.7,196.31,196.25,43.46]
[1755179547311,5.79406821,196.31,196.25,43.46]
[1755179547506,5.79406821,196.31,196.19,5.09708444]
[1755179547706,0.7,196.3,196.2,43.46]
[1755179548297,26.0,196.28,196.15,33.62]
[1755179548494,5.09528176,196.26,196.16,43.44]
[1755179548703,0.7,196.25,196.16,48.53775556]
[1755179549905,5.09580105,196.24,196.16,48.53775556]
[1755179550101,26.0,196.3,196.16,86.77185017]
[1755179550313,5.10641738,196.33,196.18,15.10621557]
[1755179550627,5.10641738,196.33,196.16,87.28163809]
[1755179550628,0.67,196.32,196.19,0.44]
[1755179550926,0.67,196.32,196.2,12.55047277]
[1755179551329,0.67,196.32,196.19,0.44]
[1755179551503,0.67,196.32,196.23,12.55047277]
[1755179551829,0.06,196.33,196.25,12.55047277]
[1755179552006,0.06,196.33,196.26,5.09528176]
[1755179552608,0.06,196.33,196.27,12.55047277]
[1755179552823,0.06,196.33,196.28,12.55047277]
[1755179553017,0.06,196.33,196.28,12.99047277]
[1755179553214,0.06,196.33,196.3,12.55047277]
[1755179553410,0.06,196.33,196.31,43.42]
[1755179554533,0.06,196.33,196.31,48.51391276]
[1755179554826,0.06,196.33,196.31,43.42]
[1755179555010,0.06,196.33,196.32,43.4]
[1755179556024,20.17893123,196.38,196.33,32.93334336]
[1755179556212,5.98321063,196.51,196.37,12.55047277]
[1755179556410,6.65321063,196.51,196.42,12.55047277]
[1755179556611,6.65321063,196.51,196.42,15.10621557]
[1755179557137,12.71567343,196.61,196.42,15.10621557]
[1755179557138,0.67,196.54,196.45,12.55047277]
[1755179557313,0.67,196.59,196.5,15.10621557]
[1755179557644,12.71343153,196.65,196.51,43.38]
[1755179557645,11.57352652,196.6,196.51,43.38]
[1755179557825,11.57352652,196.6,196.52,43.38]
[1755179558036,11.57352652,196.6,196.53,43.38]
[1755179558425,49.72205143,196.6,196.42,12.713431]
[1755179558614,26.0,196.57,196.4,15.10621557]
[1755179558810,26.0,196.56,196.36,5.0926869]
[1755179559015,26.0,196.55,196.37,15.106216]
[1755179559312,26.0,196.55,196.42,12.55047277]
[1755179559514,75.15440137,196.6,196.42,12.55047277]
[1755179559515,0.67,196.54,196.42,13.23047277]
[1755179559711,0.67,196.54,196.43,43.36]
[1755179560146,5.08828168,196.53,196.43,43.36]
[1755179560622,5.08828168,196.53,196.44,0.68]
[1755179560824,5.08828168,196.53,196.43,43.36]
[1755179561150,0.67,196.52,196.43,43.36]
[1755179561455,0.67,196.52,196.43,61.00134435]
[1755179561618,0.67,196.52,196.43,48.45087158]
[1755179562136,0.67,196.52,196.43,61.00134435]
[1755179562320,0.67,196.55,196.45,12.55047277]
[1755179562521,0.67,196.55,196.44,15.10621557]
[1755179562720,5.08750508,196.56,196.45,12.55047277]
[1755179563052,0.67,196.59,196.47,15.10621557]
[1755179563220,0.67,196.59,196.43,5.09087158]
[1755179563221,18.47356218,196.59,196.43,5.09087158]
[1755179563424,0.67,196.58,196.45,15.10621557]
[1755179563624,0.67,196.58,196.46,13.23047277]
[1755179563839,0.67,196.58,196.46,0.68]
[1755179564045,0.67,196.58,196.44,43.36]
[1755179564232,5.08724627,196.57,196.45,48.43035377]
[1755179564431,0.67,196.56,196.45,48.43035377]
[1755179565055,0.67,196.56,196.46,43.34]
[1755179565927,0.67,196.56,196.47,13.23047277]
[1755179566460,5.75673968,196.59,196.48,17.64004931]
[1755179566654,5.75673968,196.59,196.48,5.08957654]
[1755179567262,0.67,196.58,196.49,43.32]
[1755179567751,6.487,196.6,196.5,13.23047277]
[1755179568057,6.487,196.6,196.51,27.65668834]
[1755179568265,6.487,196.6,196.52,5.0885406]
[1755179568560,6.487,196.6,196.53,33.56]
[1755179568737,6.487,196.6,196.56,12.55047277]
[1755179568923,6.487,196.6,196.57,59.08621557]
[1755179569118,6.487,196.6,196.54,15.250489]
[1755179569359,6.487,196.6,196.55,43.3]
[1755179569557,6.487,196.6,196.56,43.3]
[1755179569923,6.487,196.6,196.54,15.10621557]
[1755179570120,0.67,196.59,196.55,43.3]
[1755179570327,6.487,196.6,196.55,43.98]
[1755179570545,6.487,196.6,196.55,60.9381475]
[1755179570723,6.547,196.6,196.56,0.68]
[1755179571429,6.547,196.6,196.58,15.10621557]
[1755179571752,6.547,196.6,196.56,15.10621557]
[1755179571959,6.547,196.6,196.57,43.3]
[1755179572253,6.547,196.6,196.59,5.08672872]
[1755179572464,6.547,196.6,196.53,33.56]
[1755179572632,6.547,196.6,196.54,43.28]
[1755179572842,11.63358854,196.6,196.54,43.28]
[1755179573049,6.547,196.6,196.55,15.10621557]
[1755179573246,6.547,196.6,196.56,0.68]
[1755179573446,6.547,196.6,196.57,28.16541296]
[1755179573665,6.547,196.6,196.58,0.68]
[1755179573842,6.547,196.6,196.59,43.96]
[1755179574045,6.547,196.6,196.59,71.61668834]
[1755179574244,6.547,196.6,196.59,76.70341706]
[1755179574468,6.547,196.6,196.59,77.21208993]
[1755179575067,6.547,196.6,196.59,83.73908993]
[1755179575777,6.547,196.6,196.59,12.31372872]
[1755179575943,6.547,196.6,196.59,70.67994429]
[1755179576282,6.547,196.6,196.59,27.41994429]
[1755179576610,6.547,196.6,196.59,70.67994429]
[1755179576784,6.547,196.6,196.59,83.73908993]
[1755179577258,0.67,196.7,196.6,15.10621557]
[1755179577439,0.67,196.7,196.64,15.10621557]
[1755179577643,0.67,196.73,196.65,43.26]
[1755179577863,0.67,196.73,196.66,15.10621557]
[1755179578072,0.67,196.73,196.65,43.26]
[1755179578278,0.67,196.73,196.61,0.50862112]
[1755179578279,5.08336722,196.72,196.66,43.24]
[1755179578577,0.67,196.71,196.67,43.24]
[1755179578781,0.67,196.7,196.67,43.24]
[1755179578946,5.08336722,196.72,196.62,20.19216231]
[1755179579278,0.67,196.69,196.63,43.24]
[1755179579459,0.67,196.69,196.62,20.19206708]
[1755179579460,5.75336722,196.72,196.64,43.24]
[1755179579641,0.67,196.72,196.64,43.24]
[1755179579841,5.75233665,196.76,196.67,12.55047277]
[1755179580145,5.08242408,196.76,196.65,1.18851767]
[1755179580376,0.67,196.75,196.67,15.10621557]
[1755179580576,5.08231413,196.77,196.67,27.65668834]
[1755179580782,5.80183998,196.78,196.68,0.72]
[1755179581112,0.72,196.77,196.69,43.22]
[1755179581314,0.72,196.77,196.64,5.08543531]
[1755179581630,26.0,196.75,196.63,15.245064]
[1755179581776,0.72,196.74,196.63,15.245064]
[1755179581979,26.0,196.72,196.64,43.22]
[1755179582201,0.72,196.72,196.64,43.22]
[1755179582407,0.72,196.71,196.62,33.52]
[1755179582576,26.72,196.71,196.62,33.52]
[1755179582777,0.72,196.7,196.62,33.52]
[1755179583001,0.72,196.7,196.63,43.22]
[1755179583205,0.72,196.7,196.5,0.50890585]
[1755179583412,26.0,196.66,196.53,33.52]
[1755179583597,26.72,196.65,196.53,33.52]
[1755179583802,0.72,196.64,196.53,33.52]
[1755179584397,26.0,196.6,196.54,43.2]
[1755179584591,0.72,196.59,196.54,43.2]
[1755179584788,0.72,196.58,196.53,33.52]
[1755179584993,0.72,196.57,196.54,43.2]
[1755179585509,26.0,196.6,196.54,43.2]
[1755179585510,0.72,196.56,196.54,43.2]
[1755179585719,26.0,196.6,196.54,43.2]
[1755179585720,0.72,196.55,196.54,43.2]
[1755179586024,26.0,196.54,196.46,0.03]
[1755179586179,26.0,196.52,196.46,0.03]
[1755179586379,26.0,196.48,196.47,43.2]
[1755179586657,26.0,196.47,196.46,0.03]
[1755179586909,0.72,196.47,196.46,0.03]
[1755179587209,0.72,196.47,196.4,33.55]
[1755179587210,26.72,196.47,196.42,1e-08]
[1755179587424,0.72,196.47,196.4,33.55]
[1755179587583,5.08905852,196.5,196.4,33.55]
[1755179587932,5.08905852,196.5,196.41,43.2]
[1755179588138,5.08905852,196.5,196.42,0.72]
[1755179588320,5.08905852,196.5,196.4,33.55]
[1755179588321,0.72,196.49,196.4,33.55]
[1755179588635,17.8135179,196.48,196.41,43.2]
[1755179588799,5.80947542,196.49,196.41,43.2]
[1755179589000,26.0,196.53,196.42,15.10621557]
[1755179589316,0.72,196.52,196.43,43.2]
[1755179589516,0.72,196.52,196.4,33.55]
[1755179589713,0.72,196.52,196.41,59.02621557]
[1755179589932,0.72,196.56,196.46,15.10621557]
[1755179590109,0.72,196.56,196.47,43.22]
[1755179590316,0.72,196.6,196.49,15.10621557]
[1755179590623,15.259022,196.75,196.51,15.10621557]
[1755179590797,0.72,196.71,196.56,15.10621557]
[1755179590992,8.8076552,196.74,196.5,30.31514722]
[1755179590993,0.72,196.74,196.58,15.10621557]
[1755179591212,0.72,196.74,196.59,34.26]
[1755179591425,0.72,196.74,196.59,77.46]
[1755179591726,0.72,196.74,196.59,33.54]
[1755179592031,0.72,196.74,196.57,15.10621557]
[1755179592032,26.0,196.63,196.52,33.54]
[1755179592230,0.72,196.62,196.52,33.54]
[1755179592394,26.0,196.58,196.53,43.2]
[1755179592720,0.72,196.58,196.53,43.2]
[1755179592927,0.72,196.57,196.53,43.2]
[1755179593127,0.72,196.56,196.52,33.54]
[1755179593431,0.72,196.55,196.52,33.54]
[1755179593596,0.72,196.55,196.53,43.2]
[1755179593935,0.72,196.55,196.4,0.75]
[1755179593936,0.72,196.55,196.45,33.54]
[1755179594512,0.72,196.58,196.46,5.81009467]
[1755179594717,26.0,196.56,196.46,5.81009467]
[1755179595032,0.72,196.58,196.46,5.81009467]
[1755179595325,5.08646998,196.6,196.47,44.42898355]
[1755179595554,0.72,196.59,196.47,43.92]
[1755179595721,5.08623286,196.61,196.48,13.22344239]
[1755179596047,0.72,196.69,196.57,12.50344239]
[1755179596342,5.08336722,196.72,196.58,44.42869874]
[1755179596532,5.17163827,196.73,196.61,17.58965367]
[1755179596533,0.72,196.73,196.61,17.58965367]
[1755179596736,5.08285046,196.74,196.61,30.81380299]
[1755179596922,0.72,196.73,196.62,0.72]
[1755179597128,0.72,196.73,196.61,5.08621128]
[1755179597129,0.72,196.73,196.63,43.2]
[1755179597444,5.14260305,196.75,196.64,33.54]
[1755179597622,0.06,196.75,196.65,0.72]
[1755179597827,0.06,196.75,196.67,12.50344239]
[1755179598028,0.06,196.75,196.68,0.72]
[1755179598346,0.06,196.75,196.69,43.2]
[1755179598537,0.06,196.75,196.69,48.28401308]
[1755179598736,0.06,196.75,196.65,1.22851767]
[1755179598928,0.06,196.75,196.66,43.18]
[1755179599308,0.06,196.75,196.64,33.54]
[1755179599512,0.72,196.74,196.65,43.18]
[1755179599745,0.06,196.75,196.65,43.18]
[1755179600043,0.06,196.75,196.66,43.18]
[1755179600739,0.06,196.75,196.67,5.082112]
[1755179600947,0.06,196.75,196.67,5.802112]
[1755179601319,0.72,196.74,196.68,43.18]
[1755179601545,26.0,196.73,196.67,5.082112]
[1755179601715,0.72,196.72,196.67,5.082112]
[1755179601918,3.75491171,196.71,196.64,33.54]
[1755179602138,0.06,196.75,196.52,33.52]
[1755179602139,26.0,196.65,196.52,33.52]
[1755179602340,4.38619216,196.64,196.55,10.0]
[1755179602531,5.08567701,196.64,196.55,5.087693]
[1755179602734,5.08567701,196.64,196.56,0.72]
[1755179602921,5.08567701,196.64,196.52,33.52]
[1755179602922,5.08567701,196.64,196.53,15.974367]
[1755179603127,17.79926529,196.64,196.53,15.974367]
[1755179603341,26.0,196.61,196.53,15.254367]
[1755179603544,0.63,196.61,196.54,43.18]
[1755179603731,26.63,196.61,196.55,43.18]
[1755179603939,3.75802236,196.6,196.55,43.18]
[1755179604141,0.63,196.59,196.55,43.18]
[1755179604326,0.63,196.58,196.55,43.18]
[1755179604529,31.08750508,196.56,196.55,43.18]
[1755179604835,31.08750508,196.56,196.43,5.0908439]
[1755179604836,26.0,196.53,196.4,34.27]
[1755179605130,26.0,196.51,196.4,33.55]
[1755179605342,4.3908042,196.5,196.4,33.55]
[1755179605526,0.63,196.5,196.4,33.55]
[1755179605712,17.80626779,196.56,196.43,0.72]
[1755179605916,26.0,196.53,196.43,0.72]
[1755179606144,26.0,196.53,196.44,43.18]
[1755179606550,31.08849543,196.53,196.45,0.72]
[1755179607050,5.60017487,196.57,196.45,0.72]
[1755179607051,5.08796611,196.55,196.45,0.72]
[1755179607257,13.3468109,196.6,196.45,0.72]
[1755179607426,5.08672872,196.59,196.47,12.50344239]
[1755179607622,5.08672872,196.59,196.48,0.72]
[1755179609453,0.06,196.79,196.49,13.01237414]
[1755179609454,5.0851767,196.65,196.49,13.01237414]
[1755179609652,0.63,196.67,196.5,0.72]
[1755179609855,0.63,196.67,196.53,12.50344239]
[1755179610023,5.08414255,196.69,196.54,44.42880227]
[1755179610226,5.08414255,196.69,196.55,0.72]
[1755179610647,5.08414255,196.69,196.56,5.08750508]
[1755179610843,5.08414255,196.69,196.57,0.68]
[1755179611047,17.79449894,196.69,196.57,0.68]
[1755179611260,0.63,196.68,196.58,43.18]
[1755179611435,26.0,196.66,196.59,33.54]
[1755179611832,26.63,196.66,196.59,33.54]
[1755179612038,26.63,196.66,196.6,43.18]
[1755179612652,43.21521173,196.69,196.6,43.18]
[1755179612653,26.0,196.62,196.6,43.18]
[1755179612856,26.63,196.62,196.61,43.18]
[1755179613036,26.63,196.62,196.49,33.54]
[1755179613339,0.63,196.61,196.49,33.54]
[1755179613945,26.0,196.62,196.5,0.68]
[1755179614139,26.63,196.61,196.51,43.18]
[1755179614334,0.63,196.6,196.49,33.54]
[1755179614531,26.0,196.56,196.49,33.54]
[1755179614730,26.63,196.56,196.49,33.54]
[1755179614962,26.63,196.56,196.5,43.24]
[1755179615631,0.63,196.55,196.5,43.24]
[1755179616244,0.63,196.54,196.5,43.24]
[1755179616569,5.0885406,196.52,196.5,43.24]
[1755179616749,26.0,196.5,196.49,33.54]
[1755179617150,26.63,196.5,196.49,33.54]
[1755179617872,26.0,196.49,196.47,0.03]
[1755179618181,0.63,196.48,196.47,0.03]
[1755179618345,0.63,196.48,196.47,43.23]
[1755179618553,5.08957654,196.48,196.47,43.23]
[1755179618861,13.35135151,196.52,196.47,43.23]
[1755179618862,5.08879955,196.51,196.47,43.23]
[1755179619167,26.0,196.48,196.47,43.23]
[1755179619370,26.0,196.49,196.47,43.23]
[1755179620165,5.08852759,196.53,196.47,43.23]
[1755179620542,0.63,196.56,196.47,43.23]
[1755179620543,5.08776392,196.55,196.47,43.23]
[1755179620860,26.0,196.52,196.47,43.23]
[1755179621067,17.80717373,196.55,196.47,43.23]
[1755179621875,5.08776392,196.55,196.48,0.68]
[1755179622049,5.08491813,196.66,196.48,0.68]
[1755179622235,5.08491813,196.66,196.49,27.60965796]
[1755179622568,5.0858908,196.63,196.52,5.0885406]
[1755179622767,5.7158908,196.63,196.52,0.68]
[1755179622969,0.63,196.62,196.49,0.68]
[1755179623464,26.0,196.56,196.47,0.03]
[1755179623661,43.22859536,196.63,196.42,0.03]
[1755179623662,26.0,196.47,196.42,0.03]
[1755179623867,26.63,196.46,196.38,43.2]
[1755179624043,26.0,196.41,196.39,1e-08]
[1755179624240,26.63,196.4,196.39,1e-08]
[1755179624543,26.63,196.4,196.25,0.68]
[1755179624544,26.0,196.35,196.25,0.68]
[1755179624945,26.0,196.35,196.23,2.65019272]
[1755179624946,32.55614382,196.35,196.23,3.33019272]
[1755179625147,26.63,196.35,196.23,3.33019272]
[1755179625350,26.63,196.34,196.22,33.54]
[1755179625564,26.63,196.34,196.23,3.33106843]
[1755179625888,26.0,196.33,196.24,43.46]
[1755179626658,5.09372453,196.32,196.24,43.46]
[1755179626870,36.24767989,196.33,196.25,0.68]
[1755179627075,26.0,196.35,196.25,0.68]
[1755179627370,26.0,196.35,196.22,33.54]
[1755179627371,26.0,196.33,196.22,33.54]
[1755179627568,26.0,196.29,196.23,43.44]
[1755179627776,26.63,196.29,196.23,43.44]
[1755179628069,15.10621557,196.34,196.22,33.54]
[1755179628070,26.63,196.28,196.22,77.04]
[1755179628646,26.0,196.24,196.22,77.04]
[1755179628851,26.0,196.27,196.22,77.04]
[1755179629051,0.63,196.26,196.22,77.04]
[1755179629250,0.63,196.25,196.22,77.04]
[1755179629465,26.0,196.27,196.22,77.04]
[1755179629466,0.63,196.24,196.22,77.04]
[1755179629670,0.63,196.23,196.22,77.04]
[1755179630171,0.63,196.23,196.21,0.2]
[1755179630376,26.0,196.24,196.21,0.2]
[1755179630549,0.63,196.23,196.21,0.2]
[1755179630878,0.63,196.22,196.21,0.2]
[1755179631478,26.0,196.2,196.19,43.4]
[1755179631777,26.63,196.2,196.17,43.4]
[1755179631961,26.63,196.2,196.01,12.75405561]
[1755179631962,0.63,196.19,195.99,15.323248]
[1755179632149,10.0,196.01,196.0,2280.84916763]
[1755179632356,10.0,196.05,196.0,2246.21261651]
[1755179632556,26.0,196.02,196.0,2246.21261651]
[1755179632861,5.10178052,196.01,196.0,2246.21261651]
[1755179633261,5.10142535,196.03,196.0,2246.21261651]
[1755179633462,26.0,196.02,196.0,2246.21261651]
[1755179633875,26.0,196.02,196.0,2246.89261651]
[1755179634188,15.10621557,196.19,196.01,0.68]
[1755179634486,2.66079854,196.14,196.01,5.78178052]
[1755179634691,5.09709975,196.19,196.02,0.68]
[1755179634853,10.0,196.17,196.02,0.68]
[1755179635053,2.66059604,196.17,196.02,0.68]
[1755179635268,26.0,196.13,196.02,0.68]
[1755179635485,26.0,196.09,196.0,2246.21261651]
[1755179635661,26.0,196.09,196.01,45.02]
[1755179635864,26.0,196.09,196.01,45.7]
[1755179636188,26.0,196.11,196.01,45.7]
[1755179636377,15.302609,196.08,196.02,0.68]
[1755179636581,15.302609,196.08,196.03,15.10621557]
[1755179636760,5.09787928,196.16,196.04,5.78099979]
[1755179636961,5.09683995,196.2,196.05,15.78621557]
[1755179637163,15.294028,196.19,196.06,0.68]
[1755179637465,26.0,196.16,196.07,44.98]
[1755179637874,15.294028,196.19,196.08,0.68]
[1755179638360,26.0,196.16,196.08,0.68]
[1755179638763,5.09735956,196.18,196.08,0.68]
[1755179639058,26.0,196.15,196.08,5.77984823]
[1755179639262,26.0,196.17,196.09,0.68]
[1755179640268,12.73722413,196.28,196.1,31.74073865]
[1755179640481,5.0942435,196.3,196.14,31.74073865]
[1755179640677,5.0942435,196.3,196.16,5.09787928]
[1755179640989,6.0296301,196.3,196.17,0.7]
[1755179641188,15.287793,196.29,196.18,15.10621557]
[1755179641393,26.0,196.32,196.2,15.10621557]
[1755179641705,5.09379192,196.32,196.21,45.5]
[1755179641899,2.6576038,196.34,196.23,15.10621557]
[1755179641900,7.75098555,196.34,196.23,15.10621557]
[1755179642073,7.75098555,196.34,196.16,17.84257748]
[1755179642074,5.09338175,196.34,196.24,44.8]
[1755179642268,5.09338175,196.34,196.24,45.5]
[1755179642470,11.02438016,196.34,196.24,45.5]
[1755179642685,5.0070129,196.35,196.26,5.09528176]
[1755179642903,5.09164969,196.4,196.27,0.7]
[1755179643197,0.67,196.39,196.28,44.84]
[1755179643379,5.05046692,196.39,196.28,44.84]
[1755179643584,24.52328527,196.4,196.28,44.84]
[1755179643779,26.0,196.37,196.28,44.84]
[1755179643983,0.67,196.36,196.28,44.84]
[1755179644285,26.0,196.36,196.28,45.54]
[1755179644484,6.03251135,196.4,196.29,0.7]
[1755179644796,5.0301577,196.41,196.31,15.10621557]
[1755179644980,5.0301577,196.41,196.33,15.10621557]
[1755179644981,0.06,196.41,196.33,15.10621557]
[1755179645173,0.06,196.41,196.34,34.3]
[1755179645375,5.11198563,196.41,196.35,44.82]
[1755179645588,26.0,196.38,196.35,44.82]
[1755179645904,0.06,196.41,196.36,0.7]
[1755179646078,26.0,196.38,196.35,44.82]
[1755179646272,26.0,196.38,196.36,0.7]
[1755179646769,26.0,196.39,196.35,44.82]
[1755179646974,26.0,196.38,196.36,44.78]
[1755179647273,26.0,196.38,196.37,0.7]
[1755179647473,26.0,196.38,196.36,44.78]
[1755179648303,0.06,196.41,196.38,15.10621557]
[1755179648620,0.67,196.59,196.4,31.74073865]
[1755179648773,21.12444698,196.63,196.45,31.74073865]
[1755179648975,5.75569394,196.63,196.47,15.10621557]
[1755179649178,5.01815563,196.64,196.49,15.10621557]
[1755179649179,10.1036721,196.64,196.49,15.10621557]
[1755179649397,5.8598621,196.65,196.53,15.10621557]
[1755179649600,5.75496814,196.66,196.53,15.10621557]
[1755179649601,0.67,196.64,196.54,44.88]
[1755179650412,26.0,196.62,196.54,44.88]
[1755179650584,26.67,196.61,196.53,33.6]
[1755179650783,26.0,196.62,196.54,44.84]
[1755179650784,26.0,196.57,196.54,44.84]
[1755179651097,0.67,196.56,196.54,44.84]
[1755179651485,0.67,196.55,196.54,44.84]
[1755179651685,5.08776392,196.55,196.54,44.84]
[1755179651882,5.08672872,196.59,196.54,44.84]
[1755179652080,26.0,196.57,196.54,44.84]
[1755179652680,5.08672872,196.59,196.54,45.54]
[1755179654207,5.08440105,196.68,196.55,0.7]
[1755179654406,26.0,196.65,196.55,0.7]
[1755179654574,11.00755348,196.68,196.55,0.7]
[1755179654575,5.08440105,196.68,196.55,0.7]